Cogmind - Beta 13 @@@ ROGUE MODE // 2024.07.11 @ 03:15:05 Player: Duduxx Result: Destroyed by Y-54 Guardian with Gatling Laser Performance ------------- Evolutions (3) 1500 Regions Visited (6) 1200 Robots Destroyed (89) 445 Value Destroyed (2642) 2642 Prototype IDs (3) 60 Alien Tech Used (0) 0 Bonus (262) 262 TOTAL SCORE: 6109 Bonus ------- High Alert Combat Kills 62 Entered Garrisons 200 Cogmind --------- Core Integrity 0/700 Matter 53/300 Energy 99/100 System Corruption 3% Temperature Cool (6) Movement Core (50) Location -7/Garrison Parts ------- > --- POWER (2) -------- (None) > --- PROPULSION (5) --- (None) > --- UTILITY (4) ------ System Shield > --- WEAPON (2) ------- (None) > --- INVENTORY (5) ---- Hacking Suite System Shield Remote Datajack Katana Peak State ------------ > --- POWER ------------ Light Deuterium Engine Improved Deuterium Engine > --- PROPULSION ------- Improved Hover Unit Aerolev Unit Gravmag System Improved Airjet Improved Airjet > --- UTILITY ---------- Medium Storage Unit Hacking Suite System Shield System Shield > --- WEAPON ----------- Plasma Cannon Minigun > --- INVENTORY -------- Hacking Suite System Shield Minigun Minigun Minigun Remote Datajack Katana [Rating: 46] Favorites ----------- Power Ion Engine Engine Ion Engine Power Core Light Nuclear Core Propulsion Light Treads Treads Light Treads Leg Carbon-fiber Leg Hover Unit Aerolev Unit Flight Unit Cesium-ion Thruster Utility Hacking Suite Device Terrain Scanner Storage Large Storage Unit Processor Improved Targeting Computer Hackware Hacking Suite Protection Light Armor Plating Weapon Field Laser Energy Gun Field Laser Energy Cannon Advanced Beam Cannon Ballistic Gun Minigun Launcher Grenade Launcher Slashing Weapon Katana Build | -11 -10 -9 -9 -8 -7 -7 ------- Run | Yrd Mat Mat Min Mat Fac Gar Slots Evolved 6 | . . 2 . 2 2 . Power 1 | . . . . . 1 . Propulsion 3 | . . . . 2 1 . Utility 2 | . . 2 . . . . Weapon . | . . . . . . . Parts Attached 121 | 6 6 20 4 44 27 14 Power 17 | 1 . 4 . 7 2 3 Engine 10 | 1 . 4 . 3 2 . Core 7 | . . . . 4 . 3 Reactor . | . . . . . . . Propulsion 55 | 2 1 3 2 20 20 7 Treads 16 | 2 1 3 2 8 . . Leg 2 | . . . . 2 . . Wheel . | . . . . . . . Hover 14 | . . . . 6 8 . Flight 23 | . . . . 4 12 7 Utility 14 | 1 2 2 . 6 3 . Device 2 | . 1 . . 1 . . Storage 6 | 1 1 . . 3 1 . Processor 1 | . . 1 . . . . Hackware 4 | . . 1 . 1 2 . Protection 1 | . . . . 1 . . Artifact . | . . . . . . . Weapon 35 | 2 3 11 2 11 2 4 Energy Gun 12 | 1 2 6 1 2 . . Energy Cannon 6 | . . 1 1 2 1 1 Ballistic Gun 7 | 1 . . . 2 1 3 Ballistic Cannon . | . . . . . . . Launcher 7 | . 1 3 . 3 . . Special Weapon . | . . . . . . . Impact Weapon . | . . . . . . . Slashing Weapon 3 | . . 1 . 2 . . Piercing Weapon . | . . . . . . . Special Melee Weapon . | . . . . . . . Unidentified Prototypes 3 | . . 1 . 1 1 . Corrupted Parts 1 | . . 1 . . . . System Corruption 1 | . . 1 . . . . Parts Lost 57 | . 1 7 3 18 9 19 Power 13 | . . 3 . 5 1 4 Propulsion 22 | . . 1 2 6 5 8 Utility 6 | . . . . 2 2 2 Weapon 16 | . 1 3 1 5 1 5 Highest Loss Streak 16 | . 1 5 2 5 5 16 To Critical Strikes . | . . . . . . . Average Slot Usage (%) 95 | . 98 98 100 93 89 84 Engine 9 | . 14 10 11 3 12 6 Core 1 | . . . . 5 . 6 Treads 18 | . 28 21 22 20 . . Hover 4 | . . . . 7 6 18 Flight 4 | . . . . . 27 14 Device 6 | . 12 11 11 . . . Storage 10 | . 14 11 11 8 7 6 Processor 6 | . . 10 11 9 1 . Hackware 11 | . . 11 11 14 20 15 Energy Gun 12 | . 22 20 11 6 1 . Energy Cannon 2 | . . . 10 6 . 5 Ballistic Gun 3 | . 5 . . 1 7 7 Naked Turns . | . . . . . . . Heaviest Build 37 | 14 30 37 37 37 28 35 Greatest Support 80 | 40 40 40 40 80 42 42 Greatest Overweight (x) 8 | . . . . 3 3 8 Average Overweight (x) . | . . . . . . . Largest Inventory Capacity 15 | 8 15 15 15 15 15 10 Average Capacity 13 | 6 11 15 15 14 10 9 Most Carried 15 | 4 9 15 14 14 13 9 Average Carried 9 | 2 6 11 12 10 8 6 Final Capacity 15 | 8 15 15 15 15 10 5 Final Carried 14 | 4 9 14 12 13 9 4 Class Distribution -------------------- 56% | Mutant 22% | Hacker-Mutant 14% | Scavenger-Mutant 5% | Hacker-Sprinter Dominant Class ---------------- Mutant | -10/Materials Mutant | -9/Materials Mutant | -9/Mines Hacker-Mutant | -8/Materials Hacker-Sprinter | -7/Factory Hacker-Mutant | -7/Garrison Resources | -11 -10 -9 -9 -8 -7 -7 ----------- Run | Yrd Mat Mat Min Mat Fac Gar Matter Collected 1832 | 126 288 314 35 591 342 136 Remotely . | . . . . . . . Salvage Created 2789 | . 279 781 134 969 342 284 Parts 171 | . 19 53 9 49 24 17 Haulers Intercepted 1 | . . 1 . . . . Recyclers Shooed 4 | . 1 1 . 2 . . Parts Field Recycled . | . . . . . . . Retrieved Matter . | . . . . . . . Parts Self-Destructed . | . . . . . . . Prevented . | . . . . . . . Kills | -11 -10 -9 -9 -8 -7 -7 ------- Run | Yrd Mat Mat Min Mat Fac Gar Combat Hostiles Destroyed 69 | . 7 21 6 21 6 8 Melee 5 | . . 3 . 2 . . Guns 29 | . 5 4 4 6 6 4 Cannons 11 | . . . 2 5 . 4 AOE 23 | . 2 14 . 7 . . Classes Destroyed 11 | . 4 5 . 1 1 . Worker 2 | . . 1 . 1 . . Builder 4 | . . 3 . 1 . . Hauler 1 | . . 1 . . . . Recycler 3 | . . 1 . 2 . . Operator 4 | . 1 1 . 1 1 . Watcher 6 | . 2 3 . 1 . . Swarmer 23 | . 3 7 4 3 . 6 Grunt 33 | . 4 9 2 13 4 1 Sentry 11 | . . 5 . 4 1 1 Programmer 1 | . . . . . 1 . Heavy 1 | . . . . 1 . . Best Kill Streak 10 | . 4 8 4 10 4 3 Combat Bots Only 9 | . 3 7 4 9 4 3 Max Kills in Single Turn 4 | . 2 4 1 2 1 1 Gunslinging . | . . . . . . . Exploded 2 | . 2 2 . 2 . . Melee 1 | . . 1 . 1 . . Uniques/NPCs Destroyed . | . . . . . . . Combat | -11 -10 -9 -9 -8 -7 -7 -------- Run | Yrd Mat Mat Min Mat Fac Gar Hostile Shots Fired 667 | . 54 96 22 160 91 244 Missed 223 | . 10 25 4 34 45 105 Damage Taken 6300 | . 594 949 175 2303 523 1756 Core 1520 | . 121 186 31 474 74 634 Absorbed by Shields 26 | . . . . . 26 . Regen/Repaired (Parts) 599 | . . 139 . 460 . . Core Remaining (%) 52 | 100 51 . 45 13 . . Volleys Fired 226 | . 29 44 11 73 38 31 Largest 2 | . 2 2 2 2 2 2 Hottest 131 | . 80 126 131 131 88 105 Shots Fired 400 | . 58 84 21 117 58 62 Gun 299 | . 55 71 11 61 58 43 Cannon 74 | . . . 10 45 . 19 Launcher 27 | . 3 13 . 11 . . Special . | . . . . . . . Kinetic 125 | . 23 . . 11 48 43 Thermal 210 | . . 65 21 95 10 19 Explosive 23 | . 3 13 . 7 . . Electromagnetic 42 | . 32 6 . 4 . . Robot Hit Streak 20 | . 10 16 4 20 7 7 Robot Miss Streak 7 | . 6 3 3 4 3 7 Penetration Max . | . . . . . . . Secondary Targets 3 | . 1 . . . 1 1 Max Gunslinging Chain 1 | . 1 . . . 1 1 Shots Hit Robots 269 | . 37 62 10 88 41 31 Core Hits 148 | . 15 46 7 49 16 15 Critical Kills . | . . . . . . . Critical Parts Destroyed . | . . . . . . . Critical Strikes 6 | . . 3 1 2 . . Burn 2 | . . 1 1 . . . Sever 4 | . . 2 . 2 . . Melee Attacks 36 | . . 13 . 23 . . Impact . | . . . . . . . Slashing 36 | . . 13 . 23 . . Piercing . | . . . . . . . Sneak Attacks . | . . . . . . . Combat Hostiles . | . . . . . . . Follow-up Attacks . | . . . . . . . Damage Inflicted 6670 | . 643 1908 187 2633 730 569 Guns 3140 | . 472 712 134 701 730 391 Cannons 808 | . . . 41 589 . 178 Explosions 1966 | . 171 864 . 931 . . Melee 701 | . . 318 . 383 . . Ramming 55 | . . 14 12 29 . . Kinetic 1351 | . 215 . . 127 618 391 Thermal 2325 | . 30 667 175 1163 112 178 Explosive 1707 | . 141 864 . 702 . . Electromagnetic 531 | . 257 45 . 229 . . Impact . | . . . . . . . Slashing 701 | . . 318 . 383 . . Piercing . | . . . . . . . Highest Corruption 4 | . 4 1 1 . 3 3 Average Corruption 1 | . 2 1 1 . 3 3 Corruption Purged . | . . . . . . . Corruption Blocked . | . . . . . . . Effects 20 | . 2 9 3 . 1 5 Message Errors 5 | . . 3 . . 1 1 Matter Fused 5 | . . 2 2 . . 1 Heat Flow Errors 1 | . . 1 . . . . Energy Discharges 1 | . 1 . . . . . Data Loss (minor) 7 | . 1 3 1 . . 2 Misfires 1 | . . . . . . 1 Overload Shots . | . . . . . . . Overflow Damage 60 | . 28 5 . 27 . . Projectiles . | . . . . . . . Explosions 47 | . 28 5 . 14 . . Melee 13 | . . . . 13 . . Knockbacks . | . . . . . . . Impact . | . . . . . . . Kinetic . | . . . . . . . Secondary . | . . . . . . . Self-Inflicted Damage 107 | . 35 55 . 17 . . Shots 7 | . 3 3 . 1 . . Rammed 9 | . . 2 3 4 . . Targets Rammed 11 | . . 3 3 5 . . Kicked . | . . . . . . . Crushed 2 | . . 1 . 1 . . Highest Temperature 598 | . 97 354 452 532 220 598 Average Temperature 134 | . 42 89 209 169 88 189 Received Heat Transfer 2385 | . 267 351 54 1071 234 408 Effects 41 | . . 1 2 19 . 19 Shutdowns 8 | . . . 2 3 . 3 Energy Bleed 3 | . . . . 1 . 2 Interference 10 | . . . . 8 . 2 Matter Decay 4 | . . . . 2 . 2 Short Circuit 5 | . . . . 1 . 4 Damage (minor) 4 | . . 1 . 2 . 1 Damage (major) 3 | . . . . 2 . 1 Damage (core) 4 | . . . . . . 4 Siege Activations . | . . . . . . . Robots Corrupted . | . . . . . . . Combat Hostiles . | . . . . . . . Parts Fried . | . . . . . . . Impact Corruptions . | . . . . . . . Robots Melted 1 | . . . . 1 . . Combat Hostiles 1 | . . . . 1 . . Parts Melted 10 | . . 5 1 4 . . Heat Transferred 4914 | . 50 1517 444 2331 222 350 Parts Sabotaged . | . . . . . . . Parts Stolen . | . . . . . . . Parts Stripped . | . . . . . . . Power Chain Reactions 1 | . 1 . . . . . Alert | -11 -10 -9 -9 -8 -7 -7 ------- Run | Yrd Mat Mat Min Mat Fac Gar Peak Influence 495 | . 240 443 282 495 220 140 Initial 172 | . . . 172 109 115 . Average 174 | . 83 207 209 261 117 88 Maximum Alert Level 2 | . 1 2 1 2 1 . Low Security (%) 63 | 100 87 58 4 39 88 100 Level 1 32 | . 12 36 95 51 11 . Level 2 3 | . . 4 . 8 . . Level 3 . | . . . . . . . Level 4 . | . . . . . . . Level 5 . | . . . . . . . High Security . | . . . . . . . Max Security . | . . . . . . . Squads Dispatched 8 | . . 3 . 4 1 . Investigation 2 | . . 2 . . . . Extermination . | . . . . . . . Reinforcement 3 | . . 1 . 1 1 . Assault . | . . . . . . . Garrison 3 | . . . . 3 . . Intercept . | . . . . . . . Searches Triggered . | . . . . . . . Construction Impeded . | . . . . . . . Haulers Reinforced . | . . . . . . . Active Scanning Responses . | . . . . . . . Cargo Convoy Interrupts . | . . . . . . . Stealth | -11 -10 -9 -9 -8 -7 -7 --------- Run | Yrd Mat Mat Min Mat Fac Gar Distress Signals 8 | . 1 2 . 3 2 . Communications Jammed . | . . . . . . . Distress Signals . | . . . . . . . Times Spotted 113 | . 15 31 6 33 17 11 Peak Tracking Total 8 | . 5 5 4 8 6 5 Tactical Retreats 2 | . 1 . . 1 . . Traps | -11 -10 -9 -9 -8 -7 -7 ------- Run | Yrd Mat Mat Min Mat Fac Gar Traps Triggered 6 | . 2 1 . . 2 1 Indirectly . | . . . . . . . Trap Hack Attempts . | . . . . . . . Triggered . | . . . . . . . Disarmed 3 | . . . . 3 . . Reprogrammed 5 | . 5 . . . . . Reused . | . . . . . . . Traps Extracted . | . . . . . . . Installed . | . . . . . . . Triggered . | . . . . . . . Machines | -11 -10 -9 -9 -8 -7 -7 ---------- Run | Yrd Mat Mat Min Mat Fac Gar Machines Disabled 4 | . . 3 . 1 . . Max in Single Turn 1 | . . 1 . 1 . . Machines Repaired . | . . . . . . . Machines Dismantled . | . . . . . . . Machines Sabotaged . | . . . . . . . Overloaded Fab Kills . | . . . . . . . Hacking | -11 -10 -9 -9 -8 -7 -7 --------- Run | Yrd Mat Mat Min Mat Fac Gar Machines Accessed 20 | . 4 7 . 7 2 . Terminals 12 | . 3 5 . 3 1 . Fabricators . | . . . . . . . Repair Stations 2 | . . 1 . 1 . . Recycling Units 4 | . 1 1 . 2 . . Scanalyzers 1 | . . . . 1 . . Garrison Access 1 | . . . . . 1 . Total Hacks 67 | . 9 25 . 26 7 . Successful 43 | . 5 13 . 20 5 . Failed 24 | . 4 12 . 6 2 . Catastrophic 5 | . 1 2 . 2 . . Database Lockouts . | . . . . . . . Manual 28 | . 4 13 . 6 5 . Terminals 42 | . 7 21 . 8 6 . Fabricators . | . . . . . . . Repair Stations 8 | . . 3 . 5 . . Recycling Units 8 | . 2 1 . 5 . . Scanalyzers 8 | . . . . 8 . . Garrison Access 1 | . . . . . 1 . Terminal Hacks 24 | . 4 10 . 6 4 . Record 1 | . . . . . 1 . Robot Analysis 1 | . . 1 . . . . Scanalyzer Index 1 | . . . . 1 . . Alert Level 3 | . . 1 . 1 1 . Unreport Threat 2 | . . . . 1 1 . Disarm Traps 1 | . . . . 1 . . Reprogram Traps 1 | . 1 . . . . . Dispatch Records 1 | . . 1 . . . . Transport Status 1 | . . 1 . . . . Investigation Status 1 | . . 1 . . . . Reinforcement Status 1 | . . . . 1 . . Assault Status 2 | . 1 1 . . . . Garrison Status 1 | . . . . . 1 . Recall Investigation 1 | . . 1 . . . . Recall Reinforcements 1 | . . 1 . . . . Hauler Manifests 3 | . 2 1 . . . . Zone Layout 2 | . . 1 . 1 . . Fabricator Hacks . | . . . . . . . Repair Station Hacks 6 | . . 2 . 4 . . Scan Component 3 | . . 1 . 2 . . Repair 3 | . . 1 . 2 . . Recycling Unit Hacks 4 | . 1 1 . 2 . . Report Inventory 4 | . 1 1 . 2 . . Scanalyzer 8 | . . . . 8 . . Insert Component 4 | . . . . 4 . . Analyze 4 | . . . . 4 . . Garrison Access Hacks 1 | . . . . . 1 . Unlock Access 1 | . . . . . 1 . Unauthorized Hacks . | . . . . . . . Terminals . | . . . . . . . Fabricators . | . . . . . . . Repair Stations . | . . . . . . . Recycling Units . | . . . . . . . Scanalyzers . | . . . . . . . Garrison Access . | . . . . . . . Data Cores Recovered 2 | . 1 . . . 1 . Used . | . . . . . . . Hacking Detections 11 | . 3 4 . 4 . . Full Trace Events 2 | . . 2 . . . . Feedback Events . | . . . . . . . Feedback Blocked . | . . . . . . . Robot Schematics Acquired . | . . . . . . . Robots Built . | . . . . . . . Authchips . | . . . . . . . Time . | . . . . . . . Total Robot Build Rating . | . . . . . . . Part Schematics Acquired 4 | . . . . 4 . . Parts Built . | . . . . . . . Authchips . | . . . . . . . Time . | . . . . . . . Total Part Build Rating . | . . . . . . . Parts Repaired 3 | . . 1 . 2 . . Time 78 | . . 26 . 52 . . Parts Recycled . | . . . . . . . Recycled Matter . | . . . . . . . Retrieved Matter . | . . . . . . . Retrieved Components . | . . . . . . . Parts Scanalyzed 4 | . . . . 4 . . Part Schematics Acquired 4 | . . . . 4 . . Parts Damaged . | . . . . . . . Bothacking | -11 -10 -9 -9 -8 -7 -7 ------------ Run | Yrd Mat Mat Min Mat Fac Gar Used RIF Installer . | . . . . . . . Robots Hacked . | . . . . . . . Non-combat . | . . . . . . . Combat . | . . . . . . . Robot Hacks Applied . | . . . . . . . Relay Couplers Released . | . . . . . . . Fabnet Peak Effective % . | . . . . . . . Robots Rewired . | . . . . . . . Allies Hacked . | . . . . . . . Hacks Repelled . | . . . . . . . Allies | -11 -10 -9 -9 -8 -7 -7 -------- Run | Yrd Mat Mat Min Mat Fac Gar Total Allies . | . . . . . . . Largest Group . | . . . . . . . Highest-Rated Group . | . . . . . . . Highest-Rated Ally . | . . . . . . . Total Orders . | . . . . . . . Ally Attacks . | . . . . . . . Total Damage . | . . . . . . . Kills . | . . . . . . . Allies Corrupted . | . . . . . . . Allies Melted . | . . . . . . . Intel | -11 -10 -9 -9 -8 -7 -7 ------- Run | Yrd Mat Mat Min Mat Fac Gar Robot Analysis Total 1 | . . 1 . . . . Derelict Logs Recovered . | . . . . . . . Drone Launches . | . . . . . . . Drone Recoveries . | . . . . . . . Exploration | -11 -10 -9 -9 -8 -7 -7 ------------- Run | Yrd Mat Mat Min Mat Fac Gar Turns Passed 4196 | 66 829 1190 206 1122 425 358 Spaces Moved 2572 | 38 393 598 103 644 579 217 Core 8 | 6 . . . . . 2 Treads 1434 | 32 393 598 103 308 . . Legs . | . . . . . . . Wheels . | . . . . . . . Hover 541 | . . . . 335 110 96 Flight 589 | . . . . 1 469 119 Fastest Speed 23 | 50 160 160 160 38 23 26 Average Speed 117 | 142 160 160 160 111 46 107 Slowest Speed 675 | 160 160 160 160 240 230 675 Overloaded Moves . | . . . . . . . Propulsion Burnouts . | . . . . . . . Robots Hopped 1 | . . . . . 1 . Cave-ins Triggered . | . . . . . . . Exploration Rate (%) 36 | 3 72 59 31 60 11 16 Regions Visited 6 Branch Regions 1 Pre-discovered Areas . | . . . . . . . Known Exits Taken 1 | . . . . . 1 . Unknown Exits Taken 5 | 1 1 1 1 1 . . Scrap Searched 1 | . . . 1 . . . Spaces Dug 4 | . . . . 4 . . Terrain Destroyed 117 | . 16 57 . 44 . . Melee 4 | . . . . 4 . . Projectile . | . . . . . . . AOE 113 | . 16 57 . 40 . . Terrain Rammed . | . . . . . . . Walls Destroyed . | . . . . . . . Machines Disabled . | . . . . . . . Actions | -11 -10 -9 -9 -8 -7 -7 --------- Run | Yrd Mat Mat Min Mat Fac Gar Total 3301 | 47 535 724 121 891 694 289 Wait 190 | . 96 27 . 65 . 2 Move 2565 | 37 392 597 102 643 577 217 Hop 1 | . . . . . 1 . Pick Up 58 | 4 8 12 1 20 13 . Fast Attach 52 | 6 1 6 . 18 10 11 Attach 46 | . 1 7 3 17 15 3 Detach 30 | . . 3 . 12 10 5 Swap 23 | . 4 7 1 9 2 . Drop 36 | . 4 5 . 6 14 7 Fire 226 | . 29 44 11 73 38 31 Melee 36 | . . 13 . 23 . . Ram 1 | . . . . 1 . . Kick . | . . . . . . . Crush 10 | . . 3 3 4 . . Escape Stasis 27 | . . . . . 14 13 Rewire . | . . . . . . . Trap . | . . . . . . . Miscellaneous . | . . . . . . . Route ------- -11/Scrapyard -10/Materials (discovered 4 exits: *Mat x2 / [*Min x2]) -9/Materials (discovered 2 exits: *Mat / [*Min]) -9/Mines -8/Materials (discovered 5 exits: *Fac x3 / [*Sto x2]) -7/Factory (discovered 2 exits: [*Low] / Gar) -7/Garrison History --------- Turn | Location | Event 11 | -11/Scrapyard | Discovered new exit (range 15) 67 | -11/Scrapyard | Entered Materials 226 | -10/Materials | Discovered new exit (range 16) 303 | -10/Materials | Build established: Mutant 618 | -10/Materials | Discovered new exit (range 11) 704 | -10/Materials | Discovered new exit (range 10) 858 | -10/Materials | Discovered new exit (range 6) 867 | -10/Materials | Derelicts attacked the area 896 | -10/Materials | Entered another Materials area 896 | -9/Materials | Evolved 2 slots: Utility x2 1044 | -9/Materials | Destroyed 7 combat bots 1052 | -9/Materials | Lost 5 parts (1p1n3w) 1125 | -9/Materials | Repaired Lgt. Treads 1521 | -9/Materials | Discovered new exit (range 13) 1855 | -9/Materials | Discovered new exit (range 12) 2086 | -9/Materials | Entered Mines 2102 | -9/Mines | Met a Derelict bent on vengeance 2258 | -9/Mines | Core integrity fell below 50% 2282 | -9/Mines | Discovered new exit (range 6) 2292 | -9/Mines | Entered Materials 2292 | -8/Materials | Evolved 2 slots: Propulsion x2 2346 | -8/Materials | Discovered new exit (range 15) 2419 | -8/Materials | Lost 5 parts (1p1n1u2w) 2624 | -8/Materials | Destroyed 9 combat bots 2629 | -8/Materials | Lost 4 parts (1p1n1u1w) 2644 | -8/Materials | Discovered new exit (range 8) 2669 | -8/Materials | Build established: Scavenger-Mutant 2724 | -8/Materials | Repaired Lrg. Storage Unit 2773 | -8/Materials | Repaired Lgt. Treads 2806 | -8/Materials | Core integrity fell below 50% 3076 | -8/Materials | Garrison activated, responded to threat 3142 | -8/Materials | Lost 4 parts (1p2n1w) 3163 | -8/Materials | Discovered new exit (range 6) 3163 | -8/Materials | Discovered new exit (range 16) 3167 | -8/Materials | Build established: Hacker-Mutant 3234 | -8/Materials | Core integrity fell below 20% 3407 | -8/Materials | Discovered new exit (range 15) 3414 | -8/Materials | Entered Factory 3414 | -7/Factory | Evolved 2 slots: Power x1, Propulsion x1 3585 | -7/Factory | Lost 5 parts (3n1u1w) 3650 | -7/Factory | Discovered new exit (range 15) 3839 | -7/Factory | Identified exit to Garrison 3839 | -7/Factory | Entered Garrison 3909 | -7/Garrison | Triggered checkpoint 3941 | -7/Garrison | Core integrity fell below 50% 4084 | -7/Garrison | Heavy support dispatched to Factory 4127 | -7/Garrison | Triggered checkpoint 4129 | -7/Garrison | Triggered checkpoint 4130 | -7/Garrison | Core integrity fell below 20% 4197 | -7/Garrison | Destroyed by Y-54 Guardian with Gatling Laser Last Messages --------------- 04138_ VTOL Module destroyed. 04141_ Imp. Deuterium Engine destroyed. 04146_ Dropped Med. Storage Unit. 04148_ Plasma Cannon destroyed. 04148_ Imp. Airjet destroyed. 04148_ Minigun destroyed. 04154_ Acquired VTOL Module. 04160_ Acquired Lgt. Nuclear Core. 04162_ Acquired Autogun. 04169_ Lgt. Nuclear Core destroyed. 04171_ Critical hit (Burn: +37). 04182_ Lgt. Nuclear Core destroyed. 04183_ G-47 Trooper destroyed. 04184_ VTOL Module destroyed. 04192_ Y-54 Guardian destroyed. 04192_ Switching to secondary target: Y-54 Guardian. 04192_ Autogun destroyed. 04192_ VTOL Module destroyed. 04195_ Minigun destroyed. Map ----- +----------------------------------------------------+ | ??# ?? ?? ???????????????????????????????? | | ??# ?? ? ???????????????????????????????? | | ??# ?# ?# #???????????????????????????????? | | ??# ## ## ###?????????????????????????????? | | ??" #?????????????????????????????? | | ??" #?????????????????????????????? | | ??? #?????????????????????????????? | | ????? ??????????????????????????????? | | ??# ???# ?# #???????????????????????????????? | | ??# ## ## ##########??????????????????????? | | ??# #??????????????????????? | | ??# #??????????????????????? | | ??# ####### #??????????????????????? | | ??# ## ## ##?????# #??????????????????????? | | ???????# ?# #??????# #??????????????????????? | | ???????####??# #??????# #????????#####?????????? | | ?????????????# #??????# #????????# #?????????? | | ?????????????#![#??????# #???###### ####??????? | | ?????????????# #??????+ #???# *#??????? | | ?????????????# #??????#g #???# ######### #??????? | | ?????????????# ^######## #???# #???????# #??????? | | ?????????????# [* [%= ##### #???????#%["?????? | | ?????????????# ![ #???????#=="#????? | | ?????????????###########YY#######???????#= "#????? | | ???????????????????????# #?????????????# #"#????? | | ???????????????????????# @#?????????????#####????? | | ???????????????????????# #??????????????????????? | | ???????????????????????# #??????????????????????? | | ???????????????????????# #??????????????????????? | | ???????????????????????# ##############?????????? | | ???????????????????????# #?????????? | | ???????????????????????# = #?????????? | | ???????????????????????############# #?????????? | | ???????????????????????????????????# #?????????? | | ???????????????????????????????????#####?????????? | | ?????????????????????????????????????????????????? | | ?????????????????????????????????????????????????? | | ?????????????????????????????????????????????????? | | ?????????????????????????????????????????????????? | | ?????????????????????????????????????????????????? | | ?????????????????????????????????????????????????? | | ?????????????????????????????????????????????????? | | ?????????????????????????????????????????????????? | | ?????????????????????????????????????????????????? | | ?????????????????????????????????????????????????? | | ?????????????????????????????????????????????????? | | ?????????????????????????????????????????????????? | | ?????????????????????????????????????????????????? | | ?????????????????????????????????????????????????? | | ?????????????????????????????????????????????????? | +----------------------------------------------------+ Best States ------------- Heat Dissipation 34 Energy Generation 25 Energy Capacity 350 Matter Stores 300 Matter Capacity 300 Sight Range 16 Terrain Scan Range 14 Terrain Scan Density 10 Armor Coverage 150 Evasion (%) 65 Targeting Accuracy 6 Recoil Reduction 4 Offensive Hacking 20 Defensive Hacking 20 Item Schematics ----------------- Aerolev Unit | -8/Materials | Scanalyzed Cesium-ion Thruster | -8/Materials | Scanalyzed Hacking Suite | -8/Materials | Scanalyzed System Shield | -8/Materials | Scanalyzed Robot Schematics ------------------ None Fabricated ------------ Nothing Alien Tech Used ----------------- None Achievements -------------- None Challenges ------------ None Game ------ Seed TeslaGammaTerminator Manual? 0 Play Time 00:47:41 Cumulative 37.2 hours Start 2024.07.10 @ 19:44:52 End 2024.07.11 @ 03:15:05 Sessions 3 Manual Loads 0 Difficulty Rogue Special Mode None Game No. 88 Rogue 88 Adventurer 0 Explorer 0 Win Type - Total 0 Types 0/0/0/0/0/0/0/0/0 Lore% 24 Gallery% 32 Achievement% 24 Wizard Run 0 Options --------- Layout 1 ASCII 0 Keyboard 1 Movement Arrows Keybinds 0 Fullscreen 1 Font 24/Smallcaps Map View 50x35 Zoom Use 0% Tactical HUD 1 Map Filters NONE Filters NONE Steam 1 RUN: a0525930-7324-40ba-8e16-bda7b9b8b842